lending/lending_fUSD_20251124
["ID","MTS","AMOUNT","RATE_DAILY","PERIOD"]
[394796809,1763959844674,-89.06533695,0.00038356,8]
[394796810,1763959844683,-500.0,0.00038356,8]
[394796811,1763959844692,-601.88174723,0.00038356,8]
[394796812,1763959844702,-500.0,0.00038356,8]
[394796813,1763959844712,-565.18772834,0.00038356,8]
[394796814,1763959844721,-1396.349017,0.00038356,31]
[394796815,1763959844730,-1396.349017,0.00038356,31]
[394796816,1763959844740,-514.83001842,0.00038356,8]
[394796817,1763959844749,-1396.349017,0.00038356,31]
[394796818,1763959844759,-500.0,0.00038356,8]
[394796819,1763959844768,-205.4317096,0.00038356,31]
[394796820,1763959844780,-1190.9173074,0.00038356,31]
[394796821,1763959844789,-1396.349017,0.00038356,31]
[394796822,1763959844799,-1396.349017,0.00038356,31]
[394796823,1763959844809,-299.75222076,0.00038356,8]
[394796824,1763959844819,-1396.349017,0.00038356,31]
[394796825,1763959844828,-1396.349017,0.00038356,31]
[394796826,1763959844837,-897.27238745,0.00038356,31]
[394796827,1763959844849,-499.07662955,0.00038356,31]
[394796828,1763959844858,-674.14386383,0.00038356,31]
[394796829,1763959844869,-722.20515317,0.00038356,31]
[394796830,1763959844878,-513.92997979,0.00038356,8]
[394796831,1763959844887,-151.0,0.00038356,31]
[394796832,1763959844896,-1396.349017,0.00038356,31]
[394796833,1763959844905,-508.71578886,0.00038356,8]
[394796834,1763959844914,-500.0,0.00038356,8]
[394796835,1763959844923,-767.3161115,0.00038356,31]
[394796836,1763959844939,-629.0329055,0.00038356,31]
[394796837,1763959844948,-151.0,0.00038356,31]
[394796838,1763959844958,-500.0,0.00038356,8]
[394796839,1763959844968,-740.00691323,0.00038356,31]
[394796840,1763959845041,-656.34210377,0.00038356,31]
[394796841,1763959845050,-1396.349017,0.00038356,31]
[394796842,1763959845060,-151.0,0.00038356,31]
[394796843,1763959845071,-1396.349017,0.00038356,31]
[394796844,1763959845081,-151.0,0.00038356,31]
[394796845,1763959845092,-1396.349017,0.00038356,31]
[394796846,1763959845102,-208.143505,0.00038356,31]
[394796847,1763959845112,-1396.349017,0.00038356,31]
[394796848,1763959845121,-1396.349017,0.00038356,31]
[394796849,1763959845130,-1396.349017,0.00038356,31]
[394796850,1763959845139,-500.0,0.00038356,8]
[394796851,1763959845148,-1396.349018,0.00038356,31]
[394796852,1763959845158,-500.0,0.00038356,8]
[394796853,1763959845168,-502.88059934,0.00038356,8]
[394796854,1763959845177,-502.03862434,0.00038356,8]
[394796855,1763959845186,-388.83119715,0.00038356,8]
[394796858,1763959845721,-111.16880285,0.00038356,8]
[394796859,1763959845733,-500.0,0.00038356,8]
[394796860,1763959845742,-500.0,0.00038356,8]
[394796861,1763959845751,-547.87184885,0.00038356,8]
[394796862,1763959845760,-151.0,0.00038356,31]
[394796863,1763959845770,-151.0,0.00038356,31]
[394796864,1763959845779,-151.0,0.00038356,31]
[394796865,1763959845788,-169.388503,0.00038356,31]
[394796866,1763959845798,-151.0,0.00038356,31]
[394796867,1763959845807,-145.1064696,0.00038356,8]
[394796883,1763960763955,159.19315016,3e-08,2]
[394796965,1763961031842,-500.0,0.000299,2]
[394796966,1763961031855,-300.0,0.0002995,119]
[394796967,1763961031865,-165.34651187,0.0003,10]
[394796970,1763961031951,-155.15425154,0.0003,10]
[394796971,1763961031961,-300.0,0.0003208,119]
[394796972,1763961031971,-300.0,0.0003208,119]
[394796973,1763961031981,-300.0,0.0003208,119]
[394796974,1763961031990,-300.0,0.0003289,119]
[394796975,1763961031999,-561.0,0.00035006,2]
[394796976,1763961032009,-252.0,0.00035006,2]
[394796977,1763961032019,-600.0,0.00035616,30]
[394796978,1763961032028,-72.820388,0.0003589,30]
[394796979,1763961032046,-527.179612,0.0003589,30]
[394796980,1763961032055,-600.0,0.00036164,30]
[394796981,1763961032064,-1852.42,0.00036306,2]
[394796982,1763961032074,-1000.0,0.00036345,2]
[394796983,1763961032084,-500.0,0.00036498,5]
[394796984,1763961032093,-168.0,0.00036553,2]
[394796985,1763961032102,-200.0,0.00036633,2]
[394796986,1763961032112,-200.0,0.00036753,2]
[394796987,1763961032121,-1060.99,0.00036776,120]
[394796988,1763961032130,-299.99,0.00036776,30]
[394796989,1763961032139,-150.99,0.00036776,2]
[394796990,1763961032148,-150.99,0.00036776,30]
[394796991,1763961032158,-2407.49,0.00036776,2]
[394796992,1763961032167,-2751.0,0.00036787,120]
[394796994,1763961032177,-371.26,0.00036986,30]
[394796996,1763961032186,-168.0,0.00036992,2]
[394796998,1763961032196,-1000.0,0.00037021,2]
[394796999,1763961032205,-168.0,0.00037028,2]
[394797000,1763961032214,-153.0,0.00037252,2]
[394797001,1763961032223,-167.12,0.00037356,2]
[394797003,1763961032232,-203.15070884,0.00037453,2]
[394797005,1763961032241,-316.83204117,0.00037453,15]
[394797007,1763961032251,-2152.13641608,0.00037543,4]
[394797008,1763961032260,-500.0,0.00037552,8]
[394797009,1763961032269,-500.0,0.00037552,8]
[394797010,1763961032278,-500.0,0.00037552,8]
[394797012,1763961032289,-187.76194135,0.00037552,48]
[394797015,1763961032300,-538.97705865,0.00037552,48]
[394797017,1763961032310,-500.0,0.00037552,8]
[394797020,1763961032329,-500.0,0.00037552,8]
[394797022,1763961032338,-500.0,0.00037552,8]
[394797024,1763961032348,-500.0,0.00037552,2]
[394797026,1763961032358,-500.0,0.00037552,2]
[394797028,1763961032367,-500.0,0.00037552,2]
[394797030,1763961032377,-21984.78699107,0.00037553,2]
[394797032,1763961032387,-558.81597499,0.00037553,2]
[394797034,1763961032397,-500.0,0.00037573,5]
[394797036,1763961032406,-500.0,0.00037573,5]
[394797038,1763961032416,-150.0,0.00037576,2]
[394797040,1763961032425,-168.0,0.00037583,2]
[394797042,1763961032435,-1283.77272693,0.0003765,2]
[394797044,1763961032444,-1000.0,0.00037653,2]
[394797046,1763961032454,-500.0,0.0003778,120]
[394797048,1763961032463,-316.83204115,0.00037836,15]
[394797050,1763961032472,-203.15070878,0.00037945,2]
[394797052,1763961032482,-3410.49439048,0.0003798,2]
[394797054,1763961032491,-158.96170656,0.00038,120]
[394797056,1763961032500,-3749.63862141,0.00038,120]
[394797058,1763961032510,-25049.62071,0.00038,2]
[394797060,1763961032519,-305.307,0.00038006,2]
[394797062,1763961032528,-200.0,0.00038049,10]
[394797064,1763961032538,-500.0,0.00038054,120]
[394797066,1763961032548,-218.8231771,0.00038135,2]
[394797067,1763961032558,-316.83204115,0.00038219,15]
[394797068,1763961032571,-1546.4772008,0.00038255,2]
[394797069,1763961032581,-10000.0,0.00038256,2]
[394797070,1763961032591,-155.76565566,0.00038256,2]
[394797071,1763961032600,-7329.87826965,0.00038256,2]
[394797072,1763961032610,-173.847373,0.00038327,15]
[394797073,1763961032619,-150.0,0.00038327,15]
[394797074,1763961032629,-500.0,0.00038328,120]
[394797075,1763961032637,-500.0,0.00038345,8]
[394797076,1763961032647,-5938.3,0.00038346,2]
[394797077,1763961032657,-1081.37,0.00038355,14]
[394797078,1763961032666,-300.0,0.00038355,30]
[394797079,1763961032675,-1362.33758212,0.00038355,30]
[394797080,1763961032684,-500.0,0.00038355,30]
[394797081,1763961032693,-250.0,0.00038355,30]
[394797082,1763961032705,-500.0,0.00038355,30]
[394797083,1763961032714,-250.0,0.00038355,30]
[394797084,1763961032723,-500.0,0.00038355,30]
[394797085,1763961032733,-434.07199322,0.00038355,30]
[394797086,1763961032741,-500.0,0.00038355,30]
[394797087,1763961032751,-250.0,0.00038355,30]
[394797088,1763961032760,-500.0,0.00038355,30]
[394797089,1763961032769,-250.0,0.00038355,30]
[394797090,1763961032778,-500.0,0.00038355,30]
[394797091,1763961032789,-500.0,0.00038355,30]
[394797092,1763961032798,-250.0,0.00038355,30]
[394797093,1763961032807,-500.0,0.00038355,30]
[394797094,1763961032816,-250.0,0.00038355,30]
[394797095,1763961032825,-500.0,0.00038355,30]
[394797096,1763961032835,-500.0,0.00038355,30]
[394797097,1763961032844,-250.0,0.00038355,30]
[394797098,1763961032854,-500.0,0.00038355,30]
[394797099,1763961032863,-266.33499402,0.00038355,30]
[394797100,1763961032872,-500.0,0.00038355,30]
[394797101,1763961032882,-500.0,0.00038355,30]
[394797102,1763961032892,-414.0,0.00038355,30]
[394797103,1763961032901,-250.0,0.00038355,30]
[394797104,1763961032910,-500.0,0.00038355,30]
[394797105,1763961032920,-500.0,0.00038355,30]
[394797106,1763961032929,-500.0,0.00038355,30]
[394797107,1763961032939,-429.318,0.00038355,30]
[394797108,1763961032948,-250.0,0.00038355,30]
[394797109,1763961032957,-500.0,0.00038355,30]
[394797110,1763961032967,-500.0,0.00038355,30]
[394797111,1763961032976,-500.0,0.00038355,30]
[394797112,1763961032986,-500.0,0.00038355,30]
[394797113,1763961032996,-445.202766,0.00038355,30]
[394797114,1763961033006,-265.33285947,0.00038355,30]
[394797115,1763961033016,-500.0,0.00038355,30]
[394797116,1763961033026,-500.0,0.00038355,30]
[394797117,1763961033036,-656.41848616,0.00038355,30]
[394797118,1763961033046,-500.0,0.00038355,30]
[394797119,1763961033056,-461.67526834,0.00038355,30]
[394797120,1763961033066,-500.0,0.00038355,30]
[394797121,1763961033075,-500.0,0.00038355,30]
[394797122,1763961033088,-250.0,0.00038355,30]
[394797123,1763961033099,-478.75725327,0.00038355,30]
[394797124,1763961033109,-500.0,0.00038355,30]
[394797125,1763961033119,-500.0,0.00038355,30]
[394797126,1763961033130,-500.0,0.00038355,30]
[394797127,1763961033140,-250.0,0.00038355,30]
[394797128,1763961033151,-496.47127164,0.00038355,30]
[394797129,1763961033160,-500.0,0.00038355,30]
[394797130,1763961033170,-500.0,0.00038355,30]
[394797131,1763961033180,-500.0,0.00038355,30]
[394797132,1763961033189,-250.0,0.00038355,30]
[394797133,1763961033200,-500.0,0.00038355,30]
[394797134,1763961033209,-514.84070869,0.00038355,30]
[394797135,1763961033218,-500.0,0.00038355,30]
[394797136,1763961033228,-500.0,0.00038355,30]
[394797137,1763961033237,-250.0,0.00038355,30]
[394797138,1763961033246,-500.0,0.00038355,30]
[394797139,1763961033256,-533.88981491,0.00038355,30]
[394797140,1763961033265,-500.0,0.00038355,30]
[394797141,1763961033274,-500.0,0.00038355,30]
[394797142,1763961033284,-152.33888936,0.00038355,30]
[394797143,1763961033294,-285.53961118,0.00038355,30]
[394797144,1763961033302,-500.0,0.00038355,30]
[394797145,1763961033311,-500.0,0.00038355,30]
[394797146,1763961033320,-500.0,0.00038355,30]
[394797147,1763961033329,-500.0,0.00038355,30]
[394797148,1763961033339,-500.0,0.00038355,30]
[394797149,1763961033580,-500.0,0.00038355,30]
[394797150,1763961033589,-500.0,0.00038355,30]
[394797151,1763961033597,-500.0,0.00038355,30]
[394797152,1763961033606,-500.0,0.00038355,30]
[394797153,1763961033615,-500.0,0.00038355,30]
[394797154,1763961033626,-500.0,0.00038355,30]
[394797155,1763961033635,-500.0,0.00038355,30]
[394797156,1763961033645,-620.0,0.00038355,30]
[394797157,1763961033655,-500.0,0.00038355,30]
[394797158,1763961033664,-500.0,0.00038355,30]
[394797159,1763961033674,-500.0,0.00038355,30]
[394797160,1763961033683,-620.0,0.00038355,30]
[394797161,1763961033693,-500.0,0.00038355,30]
[394797162,1763961033703,-500.0,0.00038355,30]
[394797163,1763961033714,-500.0,0.00038355,30]
[394797164,1763961033724,-500.0,0.00038355,30]
[394797165,1763961033734,-500.0,0.00038355,30]
[394797166,1763961033744,-250.0,0.00038355,30]
[394797167,1763961033755,-500.0,0.00038355,30]
[394797168,1763961033764,-500.0,0.00038355,30]
[394797169,1763961033773,-500.0,0.00038355,30]
[394797170,1763961033786,-500.0,0.00038355,30]
[394797171,1763961033796,-250.0,0.00038355,30]
[394797172,1763961033805,-500.0,0.00038355,30]
[394797173,1763961033815,-500.0,0.00038355,30]
[394797174,1763961033825,-250.0,0.00038355,30]
[394797175,1763961033834,-500.0,0.00038355,30]
[394797176,1763961033843,-500.0,0.00038355,30]
[394797177,1763961033853,-250.0,0.00038355,30]
[394797178,1763961033862,-500.0,0.00038355,30]
[394797179,1763961033871,-250.0,0.00038355,30]
[394797180,1763961033881,-500.0,0.00038355,30]
[394797181,1763961033891,-264.02701306,0.00038355,30]
[394797182,1763961033900,-500.0,0.00038355,30]
[394797183,1763961033909,-500.0,0.00038355,30]
[394797184,1763961033918,-500.0,0.00038355,30]
[394797185,1763961033928,-520.0,0.00038355,30]
[394797186,1763961033937,-539.24,0.00038355,30]
[394797187,1763961033946,-500.0,0.00038355,30]
[394797188,1763961033955,-500.0,0.00038355,30]
[394797189,1763961033964,-559.19188,0.00038355,30]
[394797190,1763961033973,-500.0,0.00038355,30]
[394797191,1763961033983,-579.88197956,0.00038355,30]
[394797192,1763961033992,-500.0,0.00038355,30]
[394797193,1763961034001,-696.0430275,0.00038355,30]
[394797194,1763961034010,-500.0,0.00038355,30]
[394797195,1763961034020,-500.0,0.00038355,30]
[394797196,1763961034029,-500.0,0.00038355,30]
[394797197,1763961034040,-500.0,0.00038355,30]
[394797198,1763961034050,-500.0,0.00038355,30]
[394797199,1763961034059,-500.0,0.00038355,30]
[394797200,1763961034068,-500.0,0.00038355,30]
[394797201,1763961034077,-500.0,0.00038355,30]
[394797202,1763961034086,-500.0,0.00038355,30]
[394797203,1763961034095,-500.0,0.00038355,30]
[394797204,1763961034103,-500.0,0.00038355,30]
[394797205,1763961034112,-500.0,0.00038355,30]
[394797206,1763961034122,-500.0,0.00038355,30]
[394797207,1763961034131,-500.0,0.00038355,30]
[394797208,1763961034140,-500.0,0.00038355,30]
[394797209,1763961034150,-500.0,0.00038355,30]
[394797210,1763961034159,-500.0,0.00038355,30]
[394797211,1763961034168,-500.0,0.00038355,30]
[394797212,1763961034177,-500.0,0.00038355,30]
[394797213,1763961034186,-500.0,0.00038355,30]
[394797214,1763961034196,-500.0,0.00038355,30]
[394797215,1763961034205,-500.0,0.00038355,30]
[394797216,1763961034214,-247.89835245,0.00038355,30]
[394797217,1763961034223,-500.0,0.00038355,30]
[394797218,1763961034232,-500.0,0.00038355,30]
[394797219,1763961034242,-500.0,0.00038355,30]
[394797220,1763961034251,-500.0,0.00038355,2]
[394797221,1763961034260,-500.0,0.00038355,2]
[394797222,1763961034269,-500.0,0.00038355,15]
[394797223,1763961034278,-178.162803,0.00038355,15]
[394797224,1763961034288,-500.0,0.00038355,15]
[394797225,1763961034297,-232.86083577,0.00038355,15]
[394797226,1763961034306,-500.0,0.00038355,15]
[394797227,1763961034315,-500.0,0.00038355,15]
[394797228,1763961034324,-500.0,0.00038355,15]
[394797229,1763961034333,-500.0,0.00038355,15]
[394797230,1763961034343,-500.0,0.00038355,15]
[394797231,1763961034352,-500.0,0.00038355,15]
[394797232,1763961034360,-500.0,0.00038355,15]
[394797233,1763961034369,-500.0,0.00038355,15]
[394797234,1763961034378,-500.0,0.00038355,15]
[394797235,1763961034387,-500.0,0.00038355,15]
[394797236,1763961034397,-500.0,0.00038355,15]
[394797237,1763961034406,-500.0,0.00038355,15]
[394797238,1763961034414,-1000.0,0.00038355,2]
[394797239,1763961034423,-1000.0,0.00038355,3]
[394797240,1763961034432,-1000.0,0.00038355,3]
[394797241,1763961034441,-1000.0,0.00038355,3]
[394797242,1763961034450,-1000.0,0.00038355,3]
[394797243,1763961034459,-1000.0,0.00038355,3]
[394797244,1763961034468,-1000.0,0.00038355,3]
[394797245,1763961034477,-1247.0,0.00038356,7]
[394797246,1763961034485,-1247.0,0.00038356,7]
[394797247,1763961034494,-1247.0,0.00038356,7]
[394797248,1763961034503,-1247.0,0.00038356,7]
[394797249,1763961034512,-1247.0,0.00038356,7]
[394797250,1763961034521,-1247.0,0.00038356,7]
[394797251,1763961034530,-500.0,0.00038356,8]
[394797252,1763961034540,-502.31913605,0.00038356,8]
[394797253,1763961034549,-500.0,0.00038356,8]
[394797254,1763961034558,-503.02297782,0.00038356,8]
[394797255,1763961034568,-500.0,0.00038356,8]
[394797256,1763961034581,-624.9708388,0.00038356,2]
[394797257,1763961034590,-500.0,0.00038356,8]
[394797258,1763961034599,-51056.9926632,0.00038356,2]
[394797259,1763961034609,-500.0,0.00038356,8]
[394797260,1763961034620,-500.0,0.00038356,8]
[394797261,1763961034629,-200.0,0.00038356,2]
[394797262,1763961034638,-511.80505101,0.00038356,8]
[394797263,1763961034648,-500.0,0.00038356,8]
[394797264,1763961034659,-502.51819949,0.00038356,8]
[394797265,1763961034667,-500.0,0.00038356,8]
[394797266,1763961034676,-500.0,0.00038356,8]
[394797267,1763961034687,-500.0,0.00038356,8]
[394797268,1763961034696,-500.0,0.00038356,8]
[394797269,1763961034706,-500.0,0.00038356,8]
[394797270,1763961034716,-500.0,0.00038356,8]
[394797271,1763961034725,-151.0,0.00038356,31]
[394797272,1763961034735,-505.1518702,0.00038356,8]
[394797273,1763961034744,-502.00886335,0.00038356,8]
[394797274,1763961034752,-500.0,0.00038356,8]
[394797275,1763961034761,-151.0,0.00038356,31]
[394797276,1763961034770,-151.0,0.00038356,31]
[394797277,1763961034779,-548.6945929,0.00038356,8]
[394797278,1763961034789,-500.0,0.00038356,8]
[394797279,1763961034799,-500.0,0.00038356,8]
[394797280,1763961034808,-502.89341695,0.00038356,8]
[394797281,1763961034817,-622.54296116,0.00038356,8]
[394797282,1763961034826,-501.38045235,0.00038356,8]
[394797283,1763961034835,-500.0,0.00038356,8]
[394797284,1763961034844,-500.0,0.00038356,8]
[394797285,1763961034853,-500.0,0.00038356,8]
[394797286,1763961034862,-503.31968,0.00038356,8]
[394797287,1763961034871,-500.0,0.00038356,8]
[394797288,1763961034880,-500.0,0.00038356,8]
[394797289,1763961034890,-500.0,0.00038356,8]
[394797290,1763961034899,-500.0,0.00038356,8]
[394797291,1763961034908,-500.0,0.00038356,8]
[394797292,1763961034917,-506.26065439,0.00038356,8]
[394797293,1763961034927,-515.15498482,0.00038356,8]
[394797294,1763961034936,-507.096263,0.00038356,8]
[394797295,1763961034945,-500.0,0.00038356,8]
[394797296,1763961034954,-510.19976485,0.00038356,8]
[394797297,1763961034963,-506.6856091,0.00038356,8]
[394797298,1763961034972,-504.22351907,0.00038356,8]
[394797299,1763961034981,-500.0,0.00038356,8]
[394797300,1763961034990,-506.86377156,0.00038356,8]
[394797301,1763961034999,-897.72,0.00038356,8]
[394797302,1763961035008,-322.53272953,0.00038356,8]
[394797303,1763961035018,-500.0,0.00038356,8]
[394797304,1763961035027,-700.0,0.00038356,120]
[394797305,1763961035037,-500.0,0.00038356,8]
[394797306,1763961035047,-500.0,0.00038356,8]
[394797307,1763961035055,-500.0,0.00038356,8]
[394797308,1763961035065,-500.0,0.00038356,8]
[394797309,1763961035074,-500.0,0.00038356,8]
[394797310,1763961035083,-500.0,0.00038356,8]
[394797311,1763961035092,-500.0,0.00038356,8]
[394797312,1763961035101,-504.76225331,0.00038356,8]
[394797313,1763961035110,-500.0,0.00038356,8]
[394797314,1763961035119,-500.0,0.00038356,8]
[394797315,1763961035128,-500.0,0.00038356,8]
[394797316,1763961035137,-504.87859737,0.00038356,8]
[394797317,1763961035146,-501.08748662,0.00038356,8]
[394797318,1763961035155,-540.38676468,0.00038356,8]
[394797319,1763961035164,-505.52944894,0.00038356,8]
[394797320,1763961035173,-500.0,0.00038356,8]
[394797321,1763961035182,-500.0,0.00038356,8]
[394797322,1763961035191,-506.31850404,0.00038356,8]
[394797323,1763961035200,-517.48571489,0.00038356,8]
[394797324,1763961035209,-500.0,0.00038356,8]
[394797325,1763961035218,-504.82518202,0.00038356,8]
[394797326,1763961035227,-500.96274646,0.00038356,8]
[394797327,1763961035235,-500.0,0.00038356,8]
[394797328,1763961035244,-500.0,0.00038356,8]
[394797329,1763961035253,-503.7460562,0.00038356,8]
[394797330,1763961035262,-502.23566281,0.00038356,8]
[394797331,1763961035272,-500.0,0.00038356,8]
[394797332,1763961035281,-502.1470902,0.00038356,2]
[394797333,1763961035292,-500.0,0.00038356,8]
[394797334,1763961035302,-500.0,0.00038356,8]
[394797335,1763961035312,-500.0,0.00038356,8]
[394797336,1763961035321,-504.91098871,0.00038356,8]
[394797337,1763961035331,-504.07724043,0.00038356,8]
[394797338,1763961035340,-500.0,0.00038356,8]
[394797339,1763961035349,-505.29160077,0.00038356,8]
[394797340,1763961035358,-503.15997761,0.00038356,8]
[394797341,1763961035368,-506.42909579,0.00038356,8]
[394797342,1763961035377,-500.0,0.00038356,8]
[394797343,1763961035386,-503.13902767,0.00038356,8]
[394797344,1763961035395,-507.16636898,0.00038356,8]
[394797345,1763961035405,-527.61750027,0.00038356,8]
[394797346,1763961035414,-500.0,0.00038356,8]
[394797347,1763961035423,-500.0,0.00038356,8]
[394797348,1763961035432,-500.0,0.00038356,8]
[394797349,1763961035441,-500.0,0.00038356,8]
[394797350,1763961035450,-500.0,0.00038356,8]
[394797351,1763961035459,-503.0348331,0.00038356,8]
[394797352,1763961035469,-507.2598299,0.00038356,8]
[394797353,1763961035478,-500.0,0.00038356,8]
[394797354,1763961035487,-547.21294925,0.00038356,8]
[394797355,1763961035496,-500.0,0.00038356,8]
[394797356,1763961035505,-500.0,0.00038356,8]
[394797357,1763961035515,-500.0,0.00038356,8]
[394797358,1763961035524,-500.0,0.00038356,8]
[394797359,1763961035535,-500.0,0.00038356,8]
[394797360,1763961035544,-500.0,0.00038356,8]
[394797361,1763961035553,-502.08617017,0.00038356,8]
[394797362,1763961035563,-500.0,0.00038356,8]
[394797363,1763961035573,-505.37558662,0.00038356,8]
[394797364,1763961035584,-506.09287159,0.00038356,8]
[394797365,1763961035593,-500.0,0.00038356,8]
[394797366,1763961035602,-500.0,0.00038356,8]
[394797367,1763961035612,-501.88216752,0.00038356,8]
[394797368,1763961035621,-500.0,0.00038356,8]
[394797369,1763961035630,-500.0,0.00038356,8]
[394797370,1763961035639,-500.0,0.00038356,8]
[394797371,1763961035649,-500.0,0.00038356,8]
[394797372,1763961035659,-500.0,0.00038356,8]
[394797373,1763961035668,-523.2394551,0.00038356,8]
[394797374,1763961035677,-505.2666116,0.00038356,8]
[394797375,1763961035686,-500.0,0.00038356,8]
[394797376,1763961035695,-500.0,0.00038356,8]
[394797377,1763961035705,-500.0,0.00038356,8]
[394797378,1763961035714,-500.0,0.00038356,8]
[394797379,1763961035723,-500.0,0.00038356,8]
[394797380,1763961035732,-508.47064234,0.00038356,8]
[394797381,1763961035741,-502.43123505,0.00038356,8]
[394797382,1763961035751,-596.36622196,0.00038356,8]
[394797383,1763961035760,-500.0,0.00038356,8]
[394797384,1763961035769,-505.55410328,0.00038356,8]
[394797385,1763961035779,-500.0,0.00038356,8]
[394797386,1763961035792,-500.0,0.00038356,8]
[394797387,1763961035801,-512.81176117,0.00038356,8]
[394797388,1763961035811,-479.96343751,0.00038356,8]
[394797389,1763961035821,-514.87367392,0.00038356,8]
[394797390,1763961035831,-500.0,0.00038356,8]
[394797391,1763961035841,-500.0,0.00038356,8]
[394797392,1763961035850,-503.23679119,0.00038356,8]
[394797393,1763961035859,-506.99879191,0.00038356,8]
[394797394,1763961035869,-377.93114395,0.00038356,8]
[394797396,1763961038819,-909.27102,0.00035006,2]
[394797452,1763961039965,-1750.72898,0.00035006,2]
[394797454,1763961039975,-6499.0,0.00035006,2]
[394797456,1763961039984,-261.4838578,0.00037042,2]
[394797458,1763961039993,-2658.0,0.00038006,2]
[394797461,1763961040003,-1005.752,0.00038006,2]
[394797463,1763961040012,-122.06885605,0.00038356,8]
[394797465,1763961040021,-500.0,0.00038356,8]
[394797467,1763961040031,-508.07814751,0.00038356,8]
[394797470,1763961040040,-505.05962795,0.00038356,8]
[394797472,1763961040049,-509.58653195,0.00038356,8]
[394797474,1763961040058,-300.0,0.00038356,2]
[394797476,1763961040068,-506.97340014,0.00038356,8]
[394797478,1763961040077,-500.0,0.00038356,8]
[394797480,1763961040086,-500.0,0.00038356,8]
[394797482,1763961040096,-500.0,0.00038356,8]
[394797484,1763961040106,-515.17260612,0.00038356,8]
[394797486,1763961040118,-500.0,0.00038356,8]
[394797488,1763961040127,-500.0,0.00038356,8]
[394797490,1763961040136,-504.97,0.00038356,8]
[394797492,1763961040145,-500.0,0.00038356,8]
[394797494,1763961040154,-190.32955459,0.00038356,8]
[394797495,1763961040163,-500.0,0.00038356,8]
[394797497,1763961040171,-500.0,0.00038356,8]
[394797499,1763961040180,-504.88999986,0.00038356,8]
[394797501,1763961040189,-505.31713359,0.00038356,8]
[394797503,1763961040198,-504.83547106,0.00038356,8]
[394797505,1763961040207,-499.19911174,0.00038356,8]
[394797507,1763961040215,-500.0,0.00038356,8]
[394797509,1763961040224,-410.78241672,0.00038356,8]
[394797511,1763961040233,-500.0,0.00038356,8]
[394797513,1763961040241,-500.0,0.00038356,8]
[394797515,1763961040250,-504.95907445,0.00038356,8]
[394797517,1763961040259,-571.18,0.00038356,8]
[394797519,1763961040267,-515.74825733,0.00038356,8]
[394797521,1763961040276,-500.0,0.00038356,8]
[394797523,1763961040286,-151.0,0.00038356,31]
[394797525,1763961040295,-162.669742,0.00038356,31]
[394797527,1763961040304,-509.51051498,0.00038356,8]
[394797529,1763961040314,-500.0,0.00038356,8]
[394797531,1763961040323,-500.0,0.00038356,8]
[394797532,1763961040332,-500.0,0.00038356,8]
[394797533,1763961040341,-151.20124816,0.00038356,8]
[394797534,1763961040350,-517.0629793,0.00038356,8]
[394797535,1763961040360,-506.47890686,0.00038356,8]
[394797536,1763961040369,-354.8935304,0.00038356,8]
[394797537,1763961040380,-405.13188223,0.00038356,8]
[394797538,1763961040390,-500.0,0.00038356,8]
[394797539,1763961040399,-500.0,0.00038356,8]